bitfinex/quotes_SOLUSD_20240712
["timestamp","ask_amount","ask_price","bid_price","bid_amount"]
[1720772695532,16.05626113,135.58,135.53,1.47540787]
[1720772695728,14.65,135.57,135.52,37.706]
[1720772696826,7.69796821,135.61,135.52,37.706]
[1720772697133,22.34796821,135.61,135.52,37.706]
[1720772697442,22.34796821,135.61,135.57,14.65]
[1720772697828,29.72216821,135.61,135.52,81.656]
[1720772698140,42.0246,135.6,135.55,14.65]
[1720772700337,42.0246,135.6,135.52,37.706]
[1720772700338,22.0252,135.59,135.52,23.056]
[1720772700525,22.0252,135.59,135.54,14.65]
[1720772700725,14.65,135.59,135.54,14.65]
[1720772700924,34.65,135.6,135.55,14.65]
[1720772701123,34.65,135.6,135.52,37.706]
[1720772701124,7.69796821,135.61,135.52,37.706]
[1720772701328,7.69796821,135.61,135.57,14.65]
[1720772701714,7.69796821,135.61,135.58,14.65]
[1720772701953,7.3725,135.64,135.58,14.65]
[1720772702130,22.0231,135.63,135.59,14.65]
[1720772702435,7.68993482,135.65,135.6,14.65]
[1720772702436,14.65,135.64,135.6,14.65]
[1720772702614,7.68993482,135.65,135.56,29.3]
[1720772702816,7.68993482,135.65,135.57,21.9136]
[1720772703233,15.06203482,135.65,135.57,21.9136]
[1720772703627,7.3724,135.64,135.57,21.9136]
[1720772703833,7.68993482,135.65,135.57,21.9136]
[1720772703834,15.06203482,135.65,135.57,21.9136]
[1720772705744,52.3726,135.64,135.57,21.9136]
[1720772706644,7.68993482,135.65,135.57,21.9136]
[1720772706947,15.06233482,135.65,135.57,21.9136]
[1720772710222,7.68993482,135.65,135.57,21.9136]
[1720772714629,7.68993482,135.65,135.58,21.8916]
[1720772714829,8.68016113,135.67,135.58,51.1916]
[1720772715150,20.0,135.66,135.58,51.1916]
[1720772715631,20.0,135.66,135.63,7.3728]
[1720772716153,20.0,135.66,135.62,7.3733]
[1720772716319,27.3714,135.66,135.62,7.3733]
[1720772716746,7.3719,135.65,135.61,7.3739]
[1720772716949,20.0,135.66,135.6,7.3744]
[1720772717241,20.0,135.66,135.59,7.3749]
[1720772717448,7.3726,135.64,135.59,7.3749]
[1720772717641,52.372,135.65,135.6,7.3743]
[1720772717852,7.372,135.65,135.61,7.3738]
[1720772718057,27.3714,135.66,135.62,7.3734]
[1720772718257,7.372,135.65,135.61,7.374]
[1720772719237,20.0,135.66,135.6,7.3741]
[1720772719443,7.3724,135.64,135.6,7.3741]
[1720772719648,7.3724,135.64,135.59,7.3749]
[1720772719874,7.3724,135.64,135.6,7.3744]
[1720772720661,7.3732,135.63,135.58,29.2668]
[1720772720855,7.3732,135.63,135.59,7.3748]
[1720772721335,7.3736,135.62,135.58,29.2672]
[1720772721671,27.3741,135.61,135.55,21.7966]
[1720772721841,27.3741,135.61,135.56,7.3763]
[1720772722040,7.3748,135.6,135.56,7.3763]
[1720772722758,14.66,135.6,135.57,7.3758]
[1720772722962,20.0,135.61,135.57,14.66]
[1720772723345,20.0,135.61,135.58,7.3755]
[1720772723545,27.3742,135.61,135.57,22.0362]
[1720772723861,20.0,135.61,135.58,7.3756]
[1720772725160,42.0341,135.61,135.57,7.376]
[1720772725367,22.0346,135.6,135.55,29.9813]
[1720772726374,34.66,135.61,135.56,14.66]
[1720772726844,14.66,135.6,135.56,14.66]
[1720772727665,14.66,135.6,135.56,7.3766]
[1720772728371,22.0346,135.6,135.56,7.3766]
[1720772729066,34.66,135.59,135.55,7.3771]
[1720772729248,14.66,135.58,135.55,7.3771]
[1720772730774,34.66,135.59,135.57,7.3759]
[1720772730953,20.0,135.59,135.57,7.3759]
[1720772732181,20.0,135.59,135.58,7.3757]
[1720772732473,7.69448115,135.62,135.59,7.3748]
[1720772733071,22.35448115,135.62,135.58,7.3755]
[1720772733274,29.72818115,135.62,135.58,7.3755]
[1720772733655,20.0,135.61,135.58,7.3755]
[1720772734171,34.66,135.61,135.58,7.3755]
[1720772734585,14.66,135.6,135.52,65.1153]
[1720772734883,7.3749,135.6,135.55,7.3769]
[1720772735183,14.66,135.58,135.55,7.3769]
[1720772737157,14.66,135.58,135.46,25.00867632]
[1720772737158,36.2564,135.59,135.47,21.5935]
[1720772737359,14.66,135.53,135.51,7.3795]
[1720772737567,14.66,135.53,135.5,7.3799]
[1720772737776,7.3769,135.56,135.51,14.66]
[1720772738082,34.66,135.55,135.51,22.0394]
[1720772738261,34.66,135.55,135.52,7.3788]
[1720772738262,20.0,135.55,135.52,7.3788]
[1720772738783,20.0,135.55,135.51,22.0393]
[1720772738992,27.3774,135.55,135.51,22.0393]
[1720772739162,42.0374,135.55,135.51,22.0393]
[1720772740171,27.3774,135.55,135.51,22.0393]
[1720772740668,27.3774,135.55,135.53,14.66]
[1720772740669,20.0,135.55,135.53,14.66]
[1720772740873,20.0,135.57,135.52,14.66]
[1720772741074,7.3769,135.56,135.52,22.0386]
[1720772741383,20.0,135.55,135.52,14.66]
[1720772741684,27.3774,135.55,135.51,7.3793]
[1720772741889,27.3774,135.55,135.52,14.66]
[1720772742089,7.3782,135.54,135.5,22.0397]
[1720772742270,22.0382,135.54,135.49,22.0403]
[1720772742693,22.0382,135.54,135.5,7.3799]
[1720772743166,7.3782,135.54,135.5,22.0399]
[1720772743564,7.3782,135.54,135.5,14.66]
[1720772743791,42.0373,135.55,135.5,14.66]
[1720772744166,42.0373,135.55,135.51,22.0394]
[1720772744478,7.378,135.54,135.5,22.0399]
[1720772744683,52.378,135.54,135.5,7.3799]
[1720772745391,52.378,135.54,135.49,7.3804]
[1720772745889,52.378,135.54,135.5,7.3798]
[1720772746685,20.0,135.55,135.47,21.5935]
[1720772746893,7.3771,135.56,135.51,7.3792]
[1720772747190,7.3783,135.54,135.47,21.5935]
[1720772747491,7.3784,135.53,135.49,7.3803]
[1720772747699,7.3784,135.53,135.48,7.3809]
[1720772747990,7.378,135.54,135.49,7.3806]
[1720772748171,7.3785,135.53,135.49,7.3806]
[1720772748694,7.3789,135.52,135.47,21.5935]
[1720772748867,7.3789,135.52,135.48,7.381]
[1720772749186,7.3789,135.52,135.47,28.975]
[1720772749375,7.3795,135.51,135.47,28.975]
[1720772749585,45.6831,135.55,135.47,28.975]
[1720772749787,45.0,135.54,135.47,22.6834]
[1720772750083,7.3795,135.51,135.47,22.6834]
[1720772750289,7.3791,135.52,135.47,22.6834]
[1720772750797,7.3791,135.52,135.48,7.381]
[1720772751298,7.3791,135.52,135.47,22.6834]
[1720772751469,20.0,135.53,135.47,22.6834]
[1720772751668,45.0,135.52,135.47,22.6834]
[1720772752194,45.0,135.52,135.47,7.3815]
[1720772752691,7.3801,135.5,135.45,0.8499325]
[1720772753082,52.3806,135.49,135.45,0.8499325]
[1720772753588,7.3806,135.49,135.45,0.8499325]
[1720772754198,18.4476,135.52,135.45,0.8499325]
[1720772754501,7.3812,135.48,135.45,0.8499325]
[1720772754790,65.0,135.51,135.46,7.3822]
[1720772754791,72.3796,135.51,135.46,7.3822]
[1720772754998,72.3796,135.51,135.47,7.3816]
[1720772755187,72.3796,135.51,135.46,7.382]
[1720772755400,65.0,135.51,135.46,7.382]
[1720772755598,72.3799,135.51,135.46,7.382]
[1720772755799,72.3799,135.51,135.47,7.3814]
[1720772755998,27.3799,135.51,135.47,7.3814]
[1720772756185,27.3799,135.51,135.47,7.3815]
[1720772756385,20.0,135.51,135.47,7.3815]
[1720772756587,20.0,135.51,135.46,22.42]
[1720772756802,34.1275,135.55,135.48,7.3809]
[1720772756803,27.379,135.52,135.48,7.3809]
[1720772757508,7.69670199,135.53,135.46,22.42]
[1720772757691,7.69670199,135.53,135.49,7.3804]
[1720772757887,15.07520199,135.53,135.49,7.3804]
[1720772758310,7.3791,135.52,135.48,7.3809]
[1720772759031,7.3791,135.52,135.47,7.3814]
[1720772759612,7.3791,135.52,135.48,7.3811]
[1720772759786,7.69670199,135.53,135.49,7.3803]
[1720772759988,20.0,135.52,135.49,7.3803]
[1720772760217,27.3791,135.52,135.48,7.3809]
[1720772760418,20.0,135.52,135.49,7.3803]
[1720772760715,20.0,135.52,135.48,7.3809]
[1720772761010,20.0,135.52,135.46,22.42]
[1720772761407,7.69670199,135.53,135.5,7.3795]
[1720772761598,10.33162008,135.55,135.5,7.3795]
[1720772761798,20.0,135.54,135.5,7.3795]
[1720772762002,27.3779,135.54,135.5,7.3795]
[1720772762300,20.0,135.54,135.46,22.42]
[1720772762607,53.68016113,135.53,135.46,22.42]
[1720772762910,27.379,135.52,135.48,7.3808]
[1720772763288,20.0,135.52,135.49,7.3805]
[1720772763502,8.68016113,135.53,135.5,7.3799]
[1720772766914,7.69618415,135.56,135.52,14.67]
[1720772767116,34.67,135.55,135.51,7.3791]
[1720772767318,14.67,135.54,135.51,7.3791]
[1720772767497,14.67,135.54,135.46,22.42]
[1720772767697,14.67,135.54,135.49,14.67]
[1720772767912,42.0476,135.55,135.5,14.67]
[1720772768220,20.0,135.55,135.51,22.0491]
[1720772768408,20.0,135.55,135.52,7.3789]
[1720772769116,20.0,135.55,135.53,7.3783]
[1720772769496,7.69618415,135.56,135.51,21.8689]
[1720772769824,8.68016113,135.58,135.55,14.67]
[1720772770215,8.68016113,135.58,135.55,22.0471]
[1720772770691,8.68016113,135.58,135.51,21.8689]
[1720772770898,7.69219005,135.6,135.57,7.3762]
[1720772771114,7.374,135.62,135.57,7.3762]
[1720772771419,7.374,135.61,135.57,7.3762]
[1720772771795,7.3735,135.62,135.58,7.3756]
[1720772771996,7.3735,135.62,135.57,7.376]
[1720772772200,7.3741,135.61,135.56,7.3766]
[1720772772403,7.3746,135.6,135.56,7.3766]
[1720772772602,7.3742,135.61,135.56,7.3766]
[1720772773712,7.3742,135.61,135.57,7.3761]
[1720772774812,17.90513789,135.63,135.58,7.3755]
[1720772775023,65.0,135.62,135.59,7.3751]
[1720772775321,20.0,135.62,135.59,7.3751]
[1720772776401,20.0,135.62,135.58,7.3755]
[1720772776920,20.0,135.62,135.59,7.3749]
[1720772778821,20.0,135.62,135.6,7.3743]
[1720772779005,20.0,135.62,135.59,7.3751]
[1720772779814,27.3735,135.62,135.58,7.3755]
[1720772780122,7.3761,135.58,135.53,29.477]
[1720772780330,7.3763,135.57,135.53,22.099]
[1720772780493,7.3763,135.57,135.52,7.3787]
[1720772780904,7.3759,135.58,135.53,7.3782]
[1720772781109,20.0,135.57,135.54,7.3778]
[1720772781622,20.0,135.57,135.5,29.33]
[1720772781825,20.0,135.59,135.5,29.33]
[1720772782122,20.0,135.6,135.49,21.6988]
[1720772782335,7.376,135.58,135.53,7.3779]
[1720772783433,7.376,135.58,135.54,7.3778]
[1720772783621,20.0,135.6,135.56,7.3763]
[1720772783924,27.3746,135.6,135.56,7.3767]
[1720772784112,27.3746,135.6,135.55,7.3771]
[1720772784318,7.3752,135.59,135.55,7.3771]
[1720772784616,27.3747,135.6,135.55,7.3771]
[1720772784822,20.0,135.6,135.55,7.3771]
[1720772785025,27.3746,135.6,135.56,7.3766]
[1720772785924,20.0,135.6,135.56,7.3766]
[1720772786308,20.0,135.6,135.57,7.3762]
[1720772786824,27.3748,135.6,135.56,7.3766]
[1720772787230,7.3752,135.59,135.54,7.3773]
[1720772787527,7.3752,135.59,135.55,7.3772]
[1720772787817,20.0,135.6,135.51,29.33]
[1720772788224,20.0,135.6,135.56,7.3763]
[1720772788531,20.0,135.6,135.57,7.3762]
[1720772790922,20.0,135.6,135.56,7.3765]
[1720772791107,27.3746,135.6,135.55,7.3771]
[1720772791312,7.3752,135.59,135.55,7.3771]
[1720772791727,20.0,135.6,135.55,7.3771]
[1720772791932,38.4339,135.62,135.55,7.3769]
[1720772792223,7.3748,135.6,135.55,7.3769]
[1720772792402,7.3748,135.6,135.56,7.3767]
[1720772792604,18.437,135.6,135.52,21.4025]
[1720772792829,65.0,135.59,135.52,7.3785]
[1720772793418,7.377,135.56,135.52,7.3785]
[1720772793723,7.3764,135.57,135.52,7.3785]
[1720772793924,7.3768,135.56,135.52,7.3785]
[1720772794111,27.3768,135.56,135.52,7.3785]
[1720772794323,7.3774,135.55,135.51,7.3794]
[1720772794519,20.0,135.54,135.51,7.3794]
[1720772795029,7.3788,135.53,135.45,23.2126325]
[1720772795328,27.379,135.52,135.47,7.3812]
[1720772795514,65.0,135.51,135.47,7.3812]
[1720772797236,65.0,135.51,135.48,7.3811]
[1720772797615,65.0,135.51,135.49,7.3805]
[1720772797934,20.0,135.51,135.45,23.2126325]
[1720772798128,27.3785,135.53,135.48,7.3811]
[1720772798434,45.0,135.52,135.48,7.3811]
[1720772798641,20.0,135.51,135.48,7.3811]
[1720772800336,20.0,135.51,135.45,23.2126325]
[1720772800515,20.0,135.51,135.45,0.8499325]
[1720772801045,20.0,135.51,135.47,7.3815]
[1720772801420,27.3795,135.51,135.47,7.3815]
[1720772801823,52.3802,135.5,135.46,7.3821]
[1720772802018,52.3802,135.5,135.45,8.2324325]
[1720772802538,27.3806,135.49,135.45,0.8499325]
[1720772802718,52.3811,135.48,135.45,0.8499325]
[1720772802919,20.0,135.47,135.45,8.2326325]
[1720772803519,20.0,135.48,135.45,0.8499325]
[1720772804064,20.0,135.48,135.45,8.2325325]
[1720772804347,20.0,135.48,135.46,7.382]
[1720772804640,7.3804,135.5,135.45,8.2325325]
[1720772804848,65.0,135.49,135.45,8.2325325]
[1720772805146,72.3806,135.49,135.45,0.8499325]
[1720772806027,7.3811,135.48,135.45,0.8499325]
[1720772806646,7.3817,135.47,135.45,0.8499325]
[1720772807550,52.3822,135.46,135.45,0.8499325]
[1720772807764,86.9346,135.46,135.4,2.5597274]
[1720772807958,7.3849,135.41,135.4,2.5597274]
[1720772808247,52.3849,135.41,135.4,1e-08]
[1720772808415,72.3849,135.41,135.4,1e-08]
[1720772812028,80.08334611,135.41,135.4,1e-08]
[1720772816624,27.69844611,135.41,135.4,1e-08]
[1720772817029,20.0,135.41,135.4,1e-08]
[1720772817352,27.3849,135.41,135.4,1e-08]
[1720772817641,20.0,135.41,135.4,1e-08]
[1720772817849,19.80476835,135.41,135.4,1e-08]
[1720772819546,7.69701894,135.43,135.4,1e-08]
[1720772819752,7.3832,135.45,135.41,7.3848]
[1720772819937,7.3832,135.45,135.4,7.38540001]
[1720772820135,7.3833,135.44,135.4,7.38540001]
[1720772820743,20.0,135.43,135.42,7.3844]
[1720772820947,8.48862779,135.46,135.43,7.3835]
[1720772821161,8.48862779,135.46,135.44,7.3831]
[1720772821356,15.07835517,135.48,135.44,7.3831]
[1720772821536,7.69705517,135.48,135.45,7.3826]
[1720772821739,7.69705517,135.48,135.46,7.3821]
[1720772822062,0.20528206,135.5,135.47,7.3817]
[1720772822227,0.20528206,135.5,135.46,7.3817]
[1720772822646,0.20528206,135.5,135.43,21.9966]
[1720772823352,0.20528206,135.5,135.44,7.3831]
[1720772823653,7.58538206,135.5,135.43,21.9966]
[1720772824234,7.58538206,135.5,135.45,7.3825]
[1720772824438,0.20528206,135.5,135.44,7.3831]
[1720772824654,7.3812,135.48,135.44,7.3831]
[1720772826351,7.3807,135.49,135.44,7.3831]
[1720772826554,65.0,135.48,135.42,9.9440274]
[1720772826757,7.3828,135.45,135.42,2.5597274]
[1720772827440,72.78751717,135.48,135.43,7.3838]
[1720772827857,7.3819,135.47,135.43,7.3838]
[1720772828038,20.0,135.46,135.43,7.3838]
[1720772829667,20.0,135.46,135.44,7.3832]
[1720772829954,7.3824,135.46,135.43,21.9897]
[1720772830369,7.3824,135.46,135.42,2.5597274]
[1720772830587,7.3838,135.43,135.42,2.5597274]
[1720772830871,7.3835,135.44,135.42,2.5597274]
[1720772831245,7.3838,135.43,135.42,2.5597274]
[1720772832056,7.3834,135.44,135.42,2.5597274]
[1720772834481,7.3838,135.43,135.42,2.5597274]
[1720772834850,27.3838,135.43,135.42,2.5597274]
[1720772835056,72.3838,135.43,135.42,2.5597274]
[1720772835281,88.3009,135.43,135.42,2.5597274]
[1720772835578,88.70671717,135.43,135.42,2.5597274]
[1720772836680,72.78961717,135.43,135.42,2.5597274]
[1720772838374,45.0,135.43,135.42,2.5597274]
[1720772838582,7.3835,135.44,135.42,2.5597274]
[1720772838884,7.3838,135.43,135.42,2.5597274]
[1720772839556,7.3835,135.44,135.42,2.5597274]
[1720772839881,27.3838,135.43,135.42,2.5597274]
[1720772840973,20.0,135.43,135.42,2.5597274]
[1720772841578,27.3835,135.44,135.42,2.5597274]
[1720772841762,7.3838,135.43,135.42,2.5597274]
[1720772843363,27.3834,135.44,135.42,2.5597274]
[1720772843564,7.3838,135.43,135.42,2.5597274]
[1720772845887,15.0861514,135.43,135.42,2.5597274]
[1720772846384,7.7023514,135.43,135.42,2.5597274]
[1720772846889,7.3815,135.48,135.42,2.5597274]
[1720772847217,7.90339864,135.49,135.42,2.5597274]
[1720772847361,7.3831,135.45,135.42,2.5597274]
[1720772847770,7.3834,135.44,135.42,2.5597274]
[1720772847986,7.3828,135.45,135.42,2.5597274]
[1720772848199,7.3823,135.46,135.42,9.9440274]
[1720772848490,0.20528206,135.47,135.42,9.9440274]
[1720772848491,7.58708206,135.47,135.42,9.9440274]
[1720772848781,7.58698206,135.47,135.43,7.3835]
[1720772851389,7.58698206,135.47,135.42,9.9439274]
[1720772851574,7.58698206,135.47,135.43,7.3835]
[1720772851892,0.20528206,135.47,135.43,7.3835]
[1720772852070,20.20528206,135.47,135.43,7.3835]
[1720772852273,20.18144805,135.47,135.43,7.3835]
[1720772853386,7.69811658,135.49,135.46,7.3821]
[1720772853772,7.3804,135.5,135.46,7.3821]
[1720772853974,7.3797,135.51,135.46,7.3821]
[1720772854783,7.3801,135.5,135.45,8.8587714]
[1720772856793,7.3801,135.5,135.46,7.3822]
[1720772858300,7.3801,135.5,135.47,2.5597274]
[1720772862192,0.1831694,135.51,135.47,2.5597274]
[1720772862398,7.3809,135.49,135.47,2.5597274]
[1720772864002,0.1831694,135.51,135.47,2.5597274]
[1720772864181,7.3802,135.5,135.47,2.5597274]
[1720772864497,15.08120157,135.5,135.47,2.5597274]
[1720772865197,7.70100157,135.5,135.47,2.5597274]
[1720772865576,7.3809,135.49,135.47,2.5597274]
[1720772867215,7.3811,135.48,135.47,2.5597274]
[1720772867578,7.3807,135.49,135.47,2.5597274]
[1720772867773,7.3811,135.48,135.47,2.5597274]
[1720772868686,27.3811,135.48,135.47,2.5597274]
[1720772868887,72.74269184,135.48,135.47,2.5597274]
[1720772871482,7.3829,135.45,135.41,15.2953]
[1720772871686,7.3824,135.46,135.42,7.3842]
[1720772871887,7.383,135.45,135.41,22.68]
[1720772872303,65.36159184,135.48,135.41,22.68]
[1720772872504,7.3831,135.45,135.41,15.2953]
[1720772873082,45.0,135.44,135.39,6.2356]
[1720772873604,7.3835,135.44,135.4,7.3851]
[1720772874787,15.08462179,135.44,135.4,7.3851]
[1720772875492,7.70112179,135.44,135.41,7.3848]
[1720772876791,7.70112179,135.44,135.43,7.3838]
[1720772876999,7.70112179,135.44,135.42,7.3842]
[1720772877214,7.70112179,135.44,135.41,7.3847]
[1720772877400,7.70112179,135.44,135.42,7.3844]
[1720772877822,7.74379184,135.46,135.42,7.3844]
[1720772878031,20.0,135.45,135.42,7.3844]
[1720772878687,0.36927622,135.43,135.42,7.3844]
[1720772879415,0.36927622,135.43,135.39,6.2356]
[1720772879803,0.36927622,135.43,135.42,7.3844]
[1720772882798,0.36927622,135.43,135.41,7.3848]
[1720772883005,0.36927622,135.43,135.42,7.3844]
[1720772883829,0.36927622,135.43,135.41,7.3845]
[1720772886130,0.36927622,135.43,135.42,7.3844]
[1720772886424,15.08300329,135.46,135.42,7.3844]
[1720772887919,0.36927622,135.43,135.42,7.3844]
[1720772890513,0.36927622,135.43,135.41,7.3848]
[1720772892327,0.36927622,135.43,135.42,7.3844]
[1720772893415,15.08290329,135.46,135.42,7.3844]
[1720772893714,15.08290329,135.46,135.41,7.3848]
[1720772893715,7.3829,135.45,135.41,7.3848]
[1720772894107,15.08300329,135.46,135.42,7.3843]
[1720772894429,20.0,135.45,135.42,7.3843]
[1720772894796,27.3828,135.45,135.41,7.3847]
[1720772895525,0.36927622,135.42,135.41,7.3847]
[1720772896539,0.36927622,135.42,135.4,7.3852]
[1720772896908,0.36927622,135.42,135.41,7.3849]
[1720772897224,0.36927622,135.42,135.37,15.0806]
[1720772897225,0.36927622,135.42,135.4,7.3853]
[1720772898406,0.36927622,135.41,135.4,7.3853]
[1720772903707,0.36927622,135.41,135.37,15.0806]
[1720772904033,7.75427622,135.41,135.37,7.3869]
[1720772904329,0.36927622,135.41,135.38,7.3865]
[1720772904516,20.36927622,135.41,135.39,7.3859]
[1720772904717,20.36927622,135.41,135.38,7.3863]
[1720772905329,20.36927622,135.41,135.39,7.386]
[1720772905541,0.1831694,135.43,135.4,7.3855]
[1720772905719,20.0,135.43,135.4,7.3855]
[1720772906349,27.3838,135.43,135.4,7.3855]
[1720772906926,0.36927622,135.41,135.4,7.3855]
[1720772907133,0.36927622,135.41,135.39,7.3858]
[1720772907840,0.36927622,135.41,135.4,7.3855]
[1720772908025,0.36927622,135.41,135.39,7.3858]
[1720772909554,0.36927622,135.4,135.39,7.3858]
[1720772910436,0.36927622,135.4,135.39,22.8806]
[1720772910752,0.36927622,135.4,135.39,29.4447]
[1720772913350,0.36927622,135.4,135.39,7.3858]
[1720772919958,0.36927622,135.4,135.39,29.9053]
[1720772921031,0.36927622,135.4,135.39,74.9053]
[1720772921758,0.36927622,135.4,135.39,29.9053]
[1720772923954,0.36927622,135.4,135.39,74.9053]
[1720772924204,0.36927622,135.4,135.39,94.9053]
[1720772925159,0.36927622,135.4,135.39,96.29940718]
[1720772926530,0.36927622,135.4,135.39,94.9053]
[1720772937651,0.36927622,135.4,135.39,7.3858]
[1720772940688,0.36927622,135.4,135.39,52.3858]
[1720772941174,0.36927622,135.4,135.39,7.3858]
[1720772948580,0.36927622,135.4,135.32,0.8499325]
[1720772948958,0.36927622,135.4,135.38,7.3861]
[1720772949190,0.36927622,135.4,135.39,7.386]
[1720772953368,0.36927622,135.4,135.39,52.386]
[1720772959287,0.36927622,135.4,135.39,72.386]
[1720772964899,7.622e-05,135.4,135.39,73.86248721]
[1720772971994,7.622e-05,135.4,135.39,96.05248721]
[1720772973098,16.6024,135.5,135.48,7.3806]
[1720772973510,23.76392945,135.54,135.51,7.3793]
[1720772974232,23.76392945,135.54,135.44,22.19]
[1720772974369,16.0879,135.54,135.45,87.19]
[1720772974770,16.0879,135.54,135.53,7.3784]
[1720772974999,16.0879,135.54,135.52,7.3787]
[1720772975199,16.0879,135.54,135.51,7.3793]
[1720772975497,7.3796,135.51,135.47,7.3813]
[1720772977298,7.38,135.5,135.46,7.382]
[1720772977501,15.2035,135.49,135.46,7.382]
[1720772978407,15.2035,135.49,135.47,7.3815]
[1720772980208,15.2035,135.49,135.48,7.3811]
[1720772980506,16.0106,135.52,135.5,7.3799]
[1720772981587,16.0106,135.52,135.51,7.3795]
[1720772982711,15.2303,135.55,135.53,7.3784]
[1720772985399,15.2303,135.55,135.54,7.3778]
[1720772985606,15.2303,135.55,135.53,7.3783]
[1720772986311,15.2303,135.55,135.54,7.3778]
[1720772987615,16.02255141,135.59,135.51,15.0813]
[1720772987918,22.99487085,135.6,135.52,6.1783]
[1720772987919,16.163,135.6,135.52,6.1783]
[1720772988210,16.163,135.6,135.58,7.3757]
[1720772988595,16.163,135.6,135.59,7.3751]
[1720772988916,30.6957585,135.64,135.59,7.3751]
[1720772989119,20.0,135.63,135.59,7.3751]
[1720772989292,7.6713585,135.64,135.57,15.527]
[1720772989489,16.3534,135.67,135.63,7.373]
[1720772989690,16.3534,135.67,135.66,7.3713]
[1720772989907,16.3534,135.67,135.65,7.3717]
[1720772990916,16.3534,135.67,135.64,7.3722]
[1720772991414,23.0557,135.69,135.64,7.3722]
[1720772992117,23.0557,135.69,135.65,7.3718]
[1720772994515,15.686,135.69,135.64,7.3724]
[1720772994688,15.686,135.69,135.65,7.3716]
[1720772995821,15.686,135.69,135.66,7.3712]
[1720772995987,15.686,135.69,135.67,7.3708]
[1720772996197,25.66461937,135.72,135.67,7.3708]
[1720772996407,25.66461937,135.72,135.68,7.37]
[1720772996730,15.3566,135.72,135.69,7.3696]
[1720772997091,15.3566,135.72,135.68,7.37]
[1720772997493,15.3566,135.72,135.69,7.3694]
[1720772997697,7.67315889,135.73,135.69,7.3694]
[1720772997891,7.3671,135.74,135.7,7.3688]
[1720772998111,7.3666,135.75,135.7,7.3688]
[1720772998316,31.04973599,135.76,135.65,6.0775]
[1720772998615,7.3671,135.74,135.7,7.369]
[1720772999422,7.3676,135.73,135.65,6.0775]
[1720772999918,7.3672,135.74,135.65,6.0775]
[1720773000113,26.57929153,135.76,135.65,6.0775]
[1720773000321,20.0,135.75,135.65,6.0775]
[1720773000499,45.0,135.74,135.65,6.0775]
[1720773000708,7.3684,135.72,135.65,6.0775]
[1720773000914,7.3677,135.73,135.69,7.3695]
[1720773001089,7.3685,135.72,135.65,6.0775]
[1720773001421,7.3685,135.72,135.68,7.3701]
[1720773001916,7.3685,135.72,135.64,15.0718]
[1720773002091,7.3702,135.69,135.64,7.3724]
[1720773002295,7.3693,135.7,135.66,7.3713]
[1720773002503,20.0,135.69,135.62,6.1626]
[1720773002697,20.0,135.69,135.66,7.3709]
[1720773003107,27.3692,135.7,135.65,7.3717]
[1720773003309,27.3692,135.7,135.66,7.371]
[1720773003621,27.3692,135.7,135.62,6.1626]
[1720773003622,20.0,135.7,135.62,6.1626]
[1720773003798,20.0,135.71,135.69,7.3696]
[1720773004007,20.0,135.72,135.69,7.3696]
[1720773004312,20.0,135.72,135.7,7.3691]
[1720773004497,20.0,135.73,135.69,7.3696]
[1720773004699,7.3684,135.72,135.67,7.3706]
[1720773005005,7.3686,135.71,135.67,7.3706]
[1720773005510,7.3692,135.7,135.66,7.3712]
[1720773005711,7.3698,135.69,135.62,6.1626]
[1720773006022,7.3702,135.68,135.61,15.8407]